bitfinex-derivatives/quotes_SOLF0:USTF0_20260305
["timestamp","ask_amount","ask_price","bid_price","bid_amount"]
[1772704714425,6.10803185,91.219,91.182,13.62870909]
[1772704716224,6.10803185,91.219,91.183,13.62870909]
[1772704717424,6.10803185,91.219,91.184,13.62870909]
[1772704719430,6.10803185,91.219,91.183,13.62870909]
[1772704721230,6.10803185,91.219,91.182,9.867]
[1772704722232,6.10803185,91.219,91.179,13.62870909]
[1772704722530,6.10803185,91.219,91.173,9.868]
[1772704723532,5.94284343,91.217,91.173,9.868]
[1772704724532,5.93540186,91.238,91.191,9.866]
[1772704726429,5.93540186,91.238,91.18,13.32967466]
[1772704726625,5.93237329,91.236,91.18,26.95838375]
[1772704727429,5.93237329,91.236,91.18,13.32967466]
[1772704727736,5.91546771,91.233,91.18,13.32967466]
[1772704728135,5.91546771,91.233,91.18,26.95838375]
[1772704729733,15.76889019,91.231,91.18,26.95838375]
[1772704731441,5.90689019,91.23,91.18,26.95838375]
[1772704732445,5.90689019,91.23,91.183,9.867]
[1772704734535,5.90689019,91.23,91.181,13.62870909]
[1772704734740,3.46167466,91.24,91.18,17.09038375]
[1772704734741,5.91271866,91.227,91.18,17.09038375]
[1772704736747,5.90992999,91.199,91.152,13.62870909]
[1772704736949,5.90992999,91.189,91.146,13.62870909]
[1772704737247,5.90992999,91.189,91.144,13.62870909]
[1772704737547,5.90992999,91.189,91.13,3.46167466]
[1772704738047,5.90992999,91.189,91.137,9.872]
[1772704738241,5.90992999,91.189,91.14,3.46167466]
[1772704738646,5.90992999,91.189,91.15,3.46167466]
[1772704739451,5.90992999,91.189,91.14,3.46167466]
[1772704741557,5.90992999,91.189,91.142,9.872]
[1772704743456,5.90992999,91.189,91.149,9.871]
[1772704744362,5.90992999,91.189,91.156,9.87]
[1772704750263,5.90992999,91.189,91.148,9.871]
[1772704755362,5.90992999,91.189,91.15,3.46167466]
[1772704757565,5.90992999,91.189,91.158,9.87]
[1772704758970,5.96786822,91.2,91.166,9.869]
[1772704759469,5.96786822,91.219,91.171,9.869]
[1772704760267,5.95502497,91.209,91.162,9.869]
[1772704762868,5.95502497,91.209,91.16,3.46167466]
[1772704763066,5.95502497,91.209,91.12,19.749]
[1772704763067,9.865,91.205,91.125,20.44306363]
[1772704763268,5.96554694,91.199,91.14,3.46167466]
[1772704763766,5.96554694,91.199,91.15,3.46167466]
[1772704766273,5.96554694,91.199,91.16,3.46167466]
[1772704766967,5.96554694,91.199,91.161,9.87]
[1772704768172,5.96554694,91.199,91.16,3.46167466]
[1772704770370,5.96554694,91.199,91.162,9.869]
[1772704770569,5.98889086,91.219,91.17,3.46167466]
[1772704770775,5.98889086,91.209,91.16,3.46167466]
[1772704772374,5.98889086,91.209,91.165,9.869]
[1772704773468,5.98889086,91.209,91.173,9.868]
[1772704773669,5.98889086,91.209,91.132,20.44306363]
[1772704773670,5.98889086,91.209,91.17,3.46167466]
[1772704775372,5.98889086,91.209,91.18,9.868]
[1772704776579,5.98889086,91.209,91.18,3.46134139]
[1772704776781,5.98889086,91.209,91.178,9.868]
[1772704776782,5.966389,91.199,91.14,3.46134139]
[1772704777179,5.966389,91.199,91.153,9.87]
[1772704783284,5.966389,91.199,91.14,3.46134139]
[1772704783285,5.966389,91.199,91.145,9.871]
[1772704783984,5.966389,91.199,91.153,9.87]
[1772704784178,5.966389,91.199,91.14,3.46134139]
[1772704784376,5.966389,91.199,91.15,3.46134139]
[1772704784985,5.966389,91.199,91.152,9.871]
[1772704785888,5.966389,91.199,91.159,9.87]
[1772704787089,5.966389,91.199,91.149,9.871]
[1772704787286,5.966389,91.199,91.14,3.46134139]
[1772704787490,3.46134139,91.18,91.115,20.44306363]
[1772704787790,5.96219301,91.179,91.12,3.46134139]
[1772704787991,5.96219301,91.179,91.141,9.872]
[1772704792096,5.96219301,91.179,91.077,153.676]
[1772704792097,5.98750211,91.149,91.08,20.44306363]
[1772704792393,5.98750211,91.149,91.09,3.46134139]
[1772704792596,5.98750211,91.149,91.1,3.46134139]
[1772704794493,5.98750211,91.149,91.09,3.46134139]
[1772704795595,5.98750211,91.149,91.1,3.46134139]
[1772704796391,9.46656507,91.18,91.13,3.46134139]
[1772704796595,6.00522368,91.18,91.13,3.46134139]
[1772704797398,6.00522368,91.18,91.14,3.46134139]
[1772704797893,6.00522368,91.18,91.062,27.25741818]
[1772704797894,5.99975923,91.199,91.16,3.46134139]
[1772704800796,6.00364499,91.212,91.17,3.46134139]
[1772704801197,9.863,91.227,91.19,3.46134139]
[1772704801393,6.00364499,91.226,91.17,3.46134139]
[1772704801894,3.46134139,91.22,91.17,3.46134139]
[1772704802199,5.99921179,91.219,91.17,3.46134139]
[1772704802593,5.99921179,91.209,91.16,3.46134139]
[1772704803601,6.00664778,91.199,91.15,3.46134139]
[1772704803793,6.00664778,91.199,91.119,20.44306363]
[1772704803794,6.00664778,91.199,91.14,3.46134139]
[1772704804202,6.00664778,91.197,91.14,3.46134139]
[1772704804604,3.46134139,91.19,91.14,3.46134139]
[1772704804898,8.68356982,91.244,91.091,19.755]
[1772704804899,6.00664778,91.202,91.16,3.46134139]
[1772704805105,6.00664778,91.215,91.16,3.46134139]
[1772704805305,6.00664778,91.23,91.19,3.46134139]
[1772704805506,6.00664778,91.23,91.18,3.46134139]
[1772704806003,9.863,91.226,91.18,3.46134139]
[1772704806206,6.00664778,91.23,91.2,3.46134139]
[1772704806509,6.00664778,91.23,91.147,20.44306363]
[1772704806705,6.00664778,91.23,91.116,19.749]
[1772704806706,6.00664778,91.23,91.18,3.46134139]
[1772704807606,5.88755717,91.229,91.18,3.46134139]
[1772704808307,3.46134139,91.24,91.18,3.46134139]
[1772704808608,3.46134139,91.24,91.19,3.46134139]
[1772704808809,5.88755717,91.239,91.19,3.46134139]
[1772704812112,5.88755717,91.239,91.2,3.46134139]
[1772704812913,5.88755717,91.239,91.19,3.46134139]
[1772704814013,5.8767157,91.229,91.17,3.46134139]
[1772704814213,5.8767157,91.229,91.18,3.46134139]
[1772704815417,9.862,91.228,91.18,3.46134139]
[1772704816508,3.46134139,91.23,91.18,3.46134139]
[1772704816509,5.86876113,91.223,91.18,3.46134139]
[1772704816705,5.86876113,91.223,91.17,3.46134139]
[1772704817008,5.86876113,91.209,91.15,3.46134139]
[1772704817615,5.89991344,91.204,91.16,3.46134139]
[1772704818712,3.46134139,91.23,91.17,3.46134139]
[1772704818906,5.89991344,91.229,91.17,3.46134139]
[1772704819107,5.89991344,91.219,91.16,3.46134139]
[1772704819308,9.866,91.199,91.15,3.46134139]
[1772704819508,5.89991344,91.209,91.16,3.46134139]
[1772704820416,9.865,91.208,91.16,3.46134139]
[1772704820712,9.865,91.208,91.17,3.46134139]
[1772704821018,5.90802802,91.228,91.18,3.46134139]
[1772704822119,5.90802802,91.228,91.17,3.46134139]
[1772704822911,5.90375531,91.219,91.16,13.33134139]
[1772704824812,5.90297688,91.209,91.16,3.46134139]
[1772704826923,5.90319473,91.207,91.152,9.871]
[1772704827120,5.90319473,91.207,91.15,3.46134139]
[1772704828021,5.90319473,91.207,91.16,3.46134139]
[1772704828220,15.77152626,91.206,91.16,3.46134139]
[1772704828422,5.90652626,91.205,91.16,3.46134139]
[1772704828816,5.90652626,91.205,91.17,3.46134139]
[1772704830023,5.90652626,91.205,91.162,9.87]
[1772704832123,5.90652626,91.205,91.169,9.869]
[1772704832519,19.718,91.262,91.097,27.25741818]
[1772704832520,5.88809939,91.234,91.19,3.46134139]
[1772704832918,3.46134139,91.23,91.14,20.37253453]
[1772704833117,5.88809939,91.229,91.18,3.46134139]
[1772704833623,5.88544064,91.209,91.16,3.46134139]
[1772704834526,5.88544064,91.209,91.164,9.869]
[1772704835525,5.88544064,91.209,91.172,9.868]
[1772704837923,5.84945351,91.229,91.18,3.46229874]
[1772704838119,5.84945351,91.219,91.16,3.46229874]
[1772704838320,5.84945351,91.209,91.166,9.869]
[1772704839724,5.85911937,91.224,91.17,3.46229874]
[1772704840224,5.85911937,91.209,91.16,3.46229874]
[1772704840431,5.85911937,91.209,91.165,9.869]
[1772704842629,5.85911937,91.209,91.16,3.46229874]
[1772704845134,8.73975462,91.241,91.16,3.46229874]
[1772704845135,5.85880771,91.207,91.16,3.46229874]
[1772704845736,5.85948899,91.205,91.16,3.46229874]
[1772704846235,9.865,91.202,91.16,3.46229874]
[1772704848935,15.73110517,91.196,91.154,9.87]
[1772704849137,5.86510517,91.169,91.12,3.46229874]
[1772704850541,9.87,91.163,91.12,3.46229874]
[1772704851641,9.87,91.163,91.12,13.33629874]
[1772704852539,5.86510517,91.169,91.126,9.873]
[1772704852734,5.86510517,91.169,91.13,3.46229874]
[1772704853734,5.86510517,91.169,91.131,9.873]
[1772704857447,5.86510517,91.169,91.12,3.46229874]
[1772704857448,5.86510517,91.169,91.137,9.872]
[1772704859644,5.86510517,91.169,91.129,9.873]
[1772704860349,5.80683808,91.149,91.1,3.46229874]
[1772704861145,5.80683808,91.149,91.113,9.875]
[1772704861351,5.80683808,91.169,91.113,9.875]
[1772704861745,5.8193439,91.168,91.12,13.33629874]
[1772704862052,8.12574576,91.197,91.062,268.28207371]
[1772704862053,3.46229874,91.18,91.13,3.46229874]
[1772704862255,5.8193439,91.181,91.13,3.46229874]
[1772704862953,5.8193439,91.181,91.14,3.46229874]
[1772704863152,5.8193439,91.181,91.131,9.873]
[1772704864350,5.80833762,91.176,91.131,9.873]
[1772704864645,5.80833762,91.199,91.141,9.872]
[1772704865451,5.80833762,91.187,91.141,9.872]
[1772704869059,5.80833762,91.187,91.133,9.873]
[1772704869862,5.82976002,91.179,91.13,3.46229874]
[1772704870756,5.82976002,91.179,91.14,3.46229874]
[1772704871154,5.82976002,91.179,91.13,3.46229874]
[1772704872358,5.82976002,91.179,91.075,27.25741818]
[1772704872359,5.83072862,91.219,91.17,3.46229874]
[1772704872558,5.83072862,91.219,91.18,3.46229874]
[1772704872761,5.83072862,91.219,91.17,3.46229874]
[1772704873453,5.83072862,91.219,91.18,3.46229874]
[1772704873652,5.83072862,91.239,91.18,3.46229874]
[1772704873853,5.83072862,91.239,91.19,3.46229874]
[1772704874765,5.80815449,91.249,91.21,3.46229874]
[1772704875066,5.80815449,91.247,91.19,3.46229874]
[1772704875866,5.8128826,91.229,91.18,3.46229874]
[1772704876261,5.8128826,91.249,91.2,3.46229874]
[1772704876864,5.8128826,91.244,91.19,3.46229874]
[1772704877065,5.8128826,91.239,91.19,3.46229874]
[1772704877466,5.8128826,91.239,91.2,3.46229874]
[1772704877767,5.8128826,91.239,91.19,3.46229874]
[1772704879369,5.8128826,91.239,91.196,9.866]
[1772704880365,5.82658339,91.237,91.19,3.46229874]
[1772704881267,5.82658339,91.237,91.159,19.74]
[1772704881268,5.82658339,91.234,91.18,3.46229874]
[1772704881560,5.82658339,91.234,91.19,3.46229874]
[1772704881969,5.86446553,91.232,91.19,3.46229874]
[1772704882663,5.86446553,91.232,91.2,3.46229874]
[1772704882865,5.86446553,91.241,91.2,3.46229874]
[1772704883163,5.86446553,91.239,91.19,3.46229874]
[1772704883370,5.86446553,91.237,91.19,9.866]
[1772704884067,5.85609742,91.229,91.19,9.866]
[1772704888071,5.85609742,91.229,91.196,9.866]
[1772704888966,5.90264535,91.242,91.196,9.866]
[1772704889168,5.90264535,91.239,91.19,3.46229874]
[1772704889465,1.90816673,91.271,91.18,3.46229874]
[1772704889466,5.90264535,91.229,91.18,3.46229874]
[1772704890469,5.90264535,91.229,91.182,9.867]
[1772704890868,15.79202062,91.223,91.18,3.46229874]
[1772704891371,5.92902062,91.222,91.18,13.33029874]
[1772704892068,15.818885,91.221,91.18,13.33029874]
[1772704892269,5.955885,91.219,91.173,9.868]
[1772704893474,5.955885,91.212,91.173,9.868]
[1772704894170,5.95089972,91.225,91.18,3.46229874]
[1772704895072,5.95089972,91.224,91.17,3.46229874]
[1772704896376,5.98565461,91.222,91.182,9.867]
[1772704897377,5.98565461,91.219,91.182,9.867]
[1772704898281,6.01923106,91.216,91.173,9.868]
[1772704898478,6.01923106,91.216,91.17,3.46166505]
[1772704899180,6.01923106,91.216,91.16,3.46166505]
[1772704899378,6.01923106,91.216,91.179,9.868]
[1772704900684,6.01923106,91.216,91.185,9.867]
[1772704901183,6.01923106,91.216,91.142,19.744]
[1772704901383,6.01923106,91.216,91.16,3.46166505]
[1772704901580,6.01923106,91.216,91.17,3.46166505]
[1772704903390,6.0399478,91.215,91.176,9.868]
[1772704903587,6.03920583,91.209,91.176,9.868]
[1772704903987,6.03920583,91.209,91.16,3.46166505]
[1772704903988,6.03920583,91.209,91.17,9.869]
[1772704906284,6.03920583,91.209,91.162,9.87]
[1772704906591,6.04049939,91.189,91.13,3.46166505]
[1772704906985,6.04049939,91.189,91.146,9.871]
[1772704907993,13.57556811,91.25,91.084,27.25741818]
[1772704907994,6.04681205,91.209,91.16,3.46166505]
[1772704908193,6.04681205,91.209,91.17,3.46166505]
[1772704908692,6.04681205,91.209,91.16,3.46166505]
[1772704909393,9.865,91.207,91.164,9.869]
[1772704909693,6.04666137,91.206,91.164,9.869]
[1772704910994,9.866,91.198,91.16,3.46166505]
[1772704911293,6.04666137,91.197,91.157,9.87]
[1772704911494,6.04666137,91.197,91.15,3.46166505]
[1772704912398,9.866,91.196,91.15,13.33266505]
[1772704912595,16.81803338,91.235,91.116,20.37253453]
[1772704912596,3.46166505,91.19,91.116,20.37253453]
[1772704912792,6.02987211,91.195,91.15,3.46166505]
[1772704915395,6.02987211,91.195,91.152,9.871]
[1772704916497,6.02987211,91.195,91.106,19.752]
[1772704916498,6.00448872,91.179,91.13,3.46166505]
[1772704916900,6.00448872,91.179,91.14,3.46166505]
[1772704917198,6.00448872,91.194,91.15,3.46166505]
[1772704917795,6.00448872,91.194,91.14,3.46166505]
[1772704918993,6.00448872,91.194,91.162,9.87]
[1772704920600,10.21300065,91.235,91.119,40.12153453]
[1772704920601,6.0031621,91.189,91.153,9.871]
[1772704920993,6.0031621,91.189,91.13,3.46166505]
[1772704921199,6.0031621,91.189,91.14,3.46166505]
[1772704922894,6.0031621,91.189,91.163,9.869]
[1772704923400,6.0031621,91.189,91.14,3.46166505]
[1772704923597,3.46166505,91.18,91.147,9.871]
[1772704923998,5.98476647,91.179,91.147,9.871]
[1772704924200,5.98476647,91.179,91.139,9.872]
[1772704924400,5.98476647,91.149,91.092,20.37253453]
[1772704924598,3.46166505,91.13,91.07,23.83419958]
[1772704924802,9.44643152,91.13,91.07,3.46166505]
[1772704925102,5.98476647,91.129,91.07,3.46166505]
[1772704925901,5.98476647,91.129,91.09,9.877]
[1772704926304,13.57556811,91.189,91.09,9.877]
[1772704926305,3.46166505,91.14,91.09,3.46166505]
[1772704926500,9.872,91.137,91.085,9.878]
[1772704926706,9.46146588,91.13,91.085,9.878]
[1772704926906,5.99980083,91.129,91.085,9.878]
[1772704927701,3.46166505,91.12,91.07,3.46166505]
[1772704927898,5.99181215,91.119,91.07,3.46166505]
[1772704928305,5.99181215,91.146,91.09,3.46166505]
[1772704928604,5.99181215,91.139,91.09,3.46166505]
[1772704928808,5.99181215,91.139,91.08,3.46166505]
[1772704929907,3.46166505,91.13,91.098,9.876]
[1772704930209,5.99181215,91.139,91.08,3.46166505]
[1772704930909,3.46166505,91.13,91.08,3.46166505]
[1772704931610,5.96313891,91.154,91.065,19.76]
[1772704931914,5.96313891,91.154,91.121,9.874]
[1772704932210,5.95385765,91.169,91.121,9.874]
[1772704932403,5.95385765,91.169,91.129,9.873]
[1772704933613,5.95385765,91.149,91.09,3.46166505]
[1772704934210,5.95385765,91.149,91.115,9.875]
[1772704934815,3.46166505,91.16,91.115,9.875]
[1772704935216,9.4037096,91.16,91.115,9.875]
[1772704935409,5.94204455,91.159,91.115,9.875]
[1772704935809,5.94204455,91.159,91.123,9.874]
[1772704936412,5.94204455,91.159,91.11,13.33666505]
[1772704937516,3.46166505,91.17,91.12,3.46166505]
[1772704938015,5.94244827,91.169,91.13,3.46166505]
[1772704939012,3.46166505,91.18,91.132,9.873]
[1772704939212,5.94244827,91.198,91.14,3.46166505]
[1772704940214,9.40659698,91.18,91.13,3.46166505]
[1772704940720,9.865,91.204,91.087,20.37253453]
[1772704940721,5.94493193,91.179,91.14,3.46166505]
[1772704941820,5.94493193,91.179,91.151,9.871]
[1772704942221,0.00093193,91.179,91.151,9.871]
[1772704942420,3.46166505,91.2,91.151,9.871]
[1772704942719,3.46166505,91.2,91.151,11.86705103]
[1772704943220,3.46166505,91.19,91.141,9.872]
[1772704943421,3.46166505,91.18,91.141,9.872]
[1772704943615,3.46166505,91.19,91.141,9.872]
[1772704944015,3.46166505,91.19,91.15,9.871]
[1772704944215,3.8835968,91.189,91.15,9.871]
[1772704944412,3.8835968,91.199,91.151,2.02129827]
[1772704945319,3.8835968,91.199,91.153,9.87]
[1772704946519,3.8835968,91.212,91.161,2.02287161]
[1772704946712,3.8835968,91.199,91.147,2.02287161]
[1772704947313,3.8835968,91.179,91.121,2.02287161]
[1772704948420,3.64892005,91.178,91.131,9.873]
[1772704949122,9.868,91.177,91.131,9.873]
[1772704949522,9.868,91.177,91.132,2.06606946]
[1772704951627,3.64892005,91.177,91.132,2.06606946]
[1772704952330,3.64892005,91.189,91.141,2.06102855]
[1772704953225,3.64892005,91.189,91.144,9.871]
[1772704953421,3.64892005,91.202,91.151,2.06102855]
[1772704953726,3.64892005,91.202,91.16,3.46166505]
[1772704954329,3.64892005,91.219,91.18,3.46166505]
[1772704955428,3.64892005,91.239,91.19,3.46166505]
[1772704955928,3.64892005,91.239,91.184,11.8393653]
[1772704956428,3.64892005,91.238,91.184,1.9723653]
[1772704956629,3.64892005,91.238,91.19,3.46166505]
[1772704956826,3.64892005,91.229,91.184,1.9723653]
[1772704957529,3.64892005,91.227,91.18,3.46166505]
[1772704958421,3.64892005,91.227,91.19,3.46166505]
[1772704959632,3.64892005,91.227,91.18,5.43387633]
[1772704959835,3.64892005,91.227,91.182,9.867]
[1772704960035,3.64892005,91.219,91.17,3.46166505]
[1772704960335,3.64892005,91.219,91.18,3.46166505]
[1772704960533,3.64892005,91.219,91.18,3.46110083]
[1772704960932,3.64892005,91.219,91.17,3.46110083]
[1772704961433,3.64892005,91.219,91.172,9.868]
[1772704962432,3.64892005,91.217,91.172,9.868]
[1772704962629,3.64892005,91.209,91.16,3.46110083]
[1772704962835,3.64892005,91.199,91.156,1.97295812]
[1772704963830,9.866,91.192,91.15,13.33210083]
[1772704964631,9.867,91.186,91.15,3.46110083]
[1772704965441,3.64892005,91.182,91.137,9.872]
[1772704965643,3.64892005,91.182,91.14,3.46110083]
[1772704967733,3.64892005,91.194,91.15,3.46110083]
[1772704967933,3.64892005,91.194,91.141,1.96481923]
[1772704968335,7.11002088,91.19,91.141,1.96481923]
[1772704968541,3.64892005,91.189,91.149,9.871]
[1772704970236,3.64892005,91.189,91.141,1.96481923]
[1772704970438,3.64892005,91.189,91.111,19.75]
[1772704970439,3.46110083,91.17,91.12,3.46110083]
[1772704970642,3.97460914,91.169,91.117,1.9795741]
[1772704971042,3.97460914,91.169,91.127,9.873]
[1772704971242,3.97460914,91.159,91.117,1.9795741]
[1772704971445,3.97460914,91.159,91.053,153.717]
[1772704971446,3.97460914,91.159,91.102,1.9795741]
[1772704971643,3.46110083,91.15,91.102,1.9795741]
[1772704972447,3.97460914,91.159,91.102,1.9795741]
[1772704972843,3.97460914,91.159,91.11,3.46110083]
[1772704973043,3.97460914,91.159,91.118,9.874]
[1772704976458,3.97460914,91.159,91.11,3.46110083]
[1772704976759,3.97460914,91.149,91.109,9.875]
[1772704978056,9.87,91.158,91.114,9.875]
[1772704978258,3.97460914,91.157,91.114,9.875]
[1772704978556,3.46110083,91.15,91.114,9.875]
[1772704978753,3.97460914,91.149,91.114,9.875]
[1772704979854,3.97460914,91.149,91.12,9.874]
[1772704980055,3.97460914,91.149,91.101,2.01877771]
[1772704980957,3.97460914,91.149,91.112,9.875]
[1772704981152,3.97460914,91.149,91.101,2.01877771]
[1772704982858,3.46110083,91.13,91.094,1.99330193]
[1772704983960,3.97460914,91.139,91.094,1.99330193]
[1772704984861,3.46110083,91.15,91.094,1.99330193]
[1772704985462,7.43570997,91.15,91.094,1.99330193]
[1772704985864,7.43570997,91.15,91.101,1.91350482]
[1772704986462,7.43570997,91.15,91.104,9.876]
[1772704986662,7.43570997,91.15,91.101,1.91350482]
[1772704986859,3.97460914,91.15,91.101,1.91350482]
[1772704987064,3.46110083,91.14,91.101,1.91350482]
[1772704987657,3.97460914,91.139,91.104,9.876]
[1772704989363,3.97460914,91.139,91.11,9.875]
[1772704990564,3.97460914,91.139,91.101,9.876]
[1772704990763,3.97460914,91.139,91.091,1.90797233]
[1772704991763,3.97460914,91.139,91.094,1.89456238]
[1772704991961,3.46110083,91.15,91.101,1.89456238]
[1772704992767,3.97460914,91.153,91.101,1.89456238]
[1772704993568,9.871,91.151,91.105,11.77056238]
[1772704994267,3.46110083,91.15,91.105,11.77056238]
[1772704996068,3.97460914,91.147,91.105,11.77056238]
[1772704997370,7.43570997,91.16,91.111,1.88700655]
[1772704997565,3.97460914,91.159,91.111,1.88700655]
[1772704997873,3.97460914,91.149,91.1,5.35064301]
[1772704998362,9.871,91.147,91.108,9.875]
[1772704998967,3.97460914,91.149,91.101,1.88954218]
[1772704999570,19.732,91.199,91.125,9.873]
[1772704999571,3.8939203,91.164,91.125,9.873]
[1772705000266,9.87,91.163,91.123,1.90586339]
[1772705000566,3.8939203,91.149,91.101,1.90586339]
[1772705000870,3.8939203,91.149,91.067,19.76]
[1772705000871,3.8939203,91.139,91.091,1.90586339]
[1772705002470,3.8939203,91.139,91.097,9.877]
[1772705002769,3.8939203,91.139,91.091,1.90586339]
[1772705004373,3.46110083,91.17,91.111,1.91339178]
[1772705004568,3.8939203,91.149,91.101,1.91339178]
[1772705004767,3.8939203,91.149,91.09,3.46110083]
[1772705004971,3.8939203,91.149,91.091,1.91339178]
[1772705005872,3.8939203,91.149,91.1,3.46110083]
[1772705006172,3.8939203,91.147,91.109,9.875]
[1772705007272,3.8939203,91.139,91.1,9.876]
[1772705008472,3.80631037,91.138,91.1,9.876]
[1772705011375,3.80631037,91.138,91.092,9.877]
[1772705011671,3.80631037,91.135,91.1,3.46110083]
[1772705011875,3.80631037,91.148,91.111,1.85955729]
[1772705015771,9.871,91.147,91.111,1.85955729]
[1772705016884,9.87,91.154,91.113,1.651927]
[1772705018375,9.87,91.154,91.116,11.52366985]
[1772705020587,9.87,91.154,91.117,1.62440822]
[1772705020784,9.87,91.154,91.12,3.46110083]
[1772705020985,3.80631037,91.16,91.12,3.46110083]
[1772705021586,9.87,91.158,91.12,3.46110083]
[1772705022488,9.87,91.158,91.12,3.46539566]
[1772705023088,3.80631037,91.154,91.117,1.62440822]
[1772705024590,9.871,91.153,91.117,1.62440822]
[1772705025084,3.80631037,91.167,91.13,3.46539566]
[1772705026487,13.67531037,91.167,91.131,9.873]
[1772705026887,9.869,91.167,91.131,11.47220079]
[1772705029092,3.74009571,91.173,91.131,11.47220079]
[1772705029898,3.74009571,91.17,91.131,11.47220079]
[1772705031689,3.74009571,91.17,91.13,3.46539566]
[1772705031690,9.868,91.178,91.14,3.46539566]
[1772705032093,3.74009571,91.177,91.14,3.46539566]
[1772705033094,3.74009571,91.177,91.137,11.50697831]
[1772705034100,13.60809571,91.176,91.137,11.50697831]
[1772705034299,3.74009571,91.175,91.137,11.50697831]
[1772705035593,3.74009571,91.175,91.143,9.872]
[1772705035798,3.74009571,91.189,91.141,1.63589131]
[1772705036200,3.74009571,91.187,91.142,9.872]
[1772705037503,13.60709571,91.184,91.142,9.872]
[1772705037698,3.74009571,91.184,91.15,3.46539566]
[1772705037897,3.74009571,91.184,91.142,1.63589131]
[1772705039308,3.74009571,91.182,91.142,1.63589131]
[1772705039509,3.74009571,91.182,91.136,9.872]
[1772705039809,3.74009571,91.179,91.136,9.872]
[1772705040704,3.74009571,91.179,91.142,9.872]
[1772705040901,9.867,91.186,91.15,3.46539566]
[1772705041905,3.74009571,91.179,91.137,9.872]
[1772705043502,3.74009571,91.179,91.131,1.69749997]
[1772705043503,3.74009571,91.179,91.144,1.69749997]
[1772705043707,9.867,91.188,91.144,1.69749997]
[1772705044512,3.74009571,91.187,91.144,1.69749997]
[1772705050518,3.74009571,91.187,91.15,3.46539566]
[1772705051609,3.74009571,91.187,91.151,9.871]
[1772705053916,3.74009571,91.179,91.124,1.85657644]
[1772705054121,3.74009571,91.179,91.131,1.85657644]
[1772705054318,3.74009571,91.179,91.14,3.46539566]
[1772705055521,9.868,91.178,91.14,3.46539566]
[1772705056522,9.868,91.175,91.131,1.85657644]
[1772705056718,13.60809571,91.175,91.131,1.85657644]
[1772705057420,13.60809571,91.175,91.133,9.873]
[1772705057821,9.869,91.169,91.131,1.85657644]
[1772705058025,3.74009571,91.168,91.131,1.85657644]
[1772705058826,3.74009571,91.168,91.14,3.46539566]
[1772705059023,3.74009571,91.168,91.133,9.873]
[1772705059216,3.74009571,91.168,91.111,1.86026051]
[1772705059820,3.74009571,91.168,91.12,3.46539566]
[1772705060023,3.61727298,91.189,91.131,1.84096298]
[1772705060528,3.61727298,91.179,91.131,1.84096298]
[1772705061518,3.61727298,91.179,91.138,9.872]
[1772705063423,3.61727298,91.179,91.141,1.86881802]
[1772705064425,3.61727298,91.179,91.131,9.873]
[1772705064620,3.61727298,91.179,91.132,1.86927189]
[1772705064829,3.61727298,91.179,91.121,1.86927189]
[1772705065026,3.61727298,91.176,91.123,9.874]
[1772705065227,3.61727298,91.169,91.121,1.86927189]
[1772705065922,3.61727298,91.182,91.14,3.46539566]
[1772705066123,3.61727298,91.182,91.141,1.87115098]
[1772705066929,3.61727298,91.199,91.151,1.87115098]
[1772705067523,3.61727298,91.199,91.143,9.872]
[1772705067821,3.61727298,91.199,91.143,11.74928633]
[1772705068019,3.77375841,91.189,91.143,11.74928633]
[1772705068219,3.77375841,91.189,91.096,19.754]
[1772705068220,3.77375841,91.189,91.135,9.872]
[1772705069528,3.77375841,91.181,91.135,9.872]
[1772705070428,3.77375841,91.179,91.135,9.872]
[1772705071123,3.77375841,91.179,91.13,3.46539566]
[1772705071329,3.77375841,91.169,91.128,1.87728633]
[1772705072533,9.87,91.16,91.128,1.87728633]
[1772705074236,13.64475841,91.151,91.115,1.84643281]
[1772705074935,3.77375841,91.151,91.12,3.46539566]
[1772705075633,9.871,91.15,91.115,1.84643281]
[1772705076331,3.77375841,91.151,91.115,1.84643281]
[1772705077830,3.77375841,91.151,91.116,9.874]
[1772705079436,3.77375841,91.151,91.073,27.30640933]
[1772705079437,3.77375841,91.149,91.108,9.875]
[1772705080433,3.77375841,91.149,91.114,9.875]
[1772705081835,3.77375841,91.149,91.107,9.875]
[1772705082736,3.77375841,91.139,91.097,9.877]
[1772705082936,3.77375841,91.129,91.097,9.877]
[1772705083134,3.77375841,91.129,91.091,1.82847021]
[1772705083135,3.46539566,91.11,91.048,20.479807]
[1772705083329,0.00039566,91.08,91.039,1.82847021]